fUST/lending_fUST_20240812
["ID","MTS","AMOUNT","RATE_DAILY","PERIOD"]
[334690531,1723476648057,-500.0,0.00016791,2]
[334690532,1723476648066,-1940.05,0.00016791,2]
[334690533,1723476648076,-1181.89,0.00016791,2]
[334690534,1723476648085,-1145.62,0.00016791,2]
[334690535,1723476648094,-678.74,0.00016791,2]
[334690536,1723476648103,-500.0,0.00016791,2]
[334690537,1723476648112,-500.0,0.00016791,2]
[334690538,1723476648121,-500.0,0.00016791,2]
[334690539,1723476648131,-3300.19,0.00016791,2]
[334690540,1723476648140,-4811.12,0.00016791,2]
[334690541,1723476648149,-761.22,0.00016791,2]
[334690542,1723476648158,-500.0,0.00016791,2]
[334690543,1723476648167,-1023.01,0.00016791,2]
[334690544,1723476648181,-500.0,0.00016791,2]
[334690545,1723476648195,-500.0,0.00016791,2]
[334690546,1723476648209,-1620.96,0.00016791,2]
[334690547,1723476648222,-500.0,0.00016791,2]
[334690548,1723476648234,-500.0,0.00016791,2]
[334690549,1723476648248,-588.84,0.00016791,2]
[334690550,1723476648266,-500.0,0.00016791,2]
[334690551,1723476648281,-728.26,0.00016791,2]
[334690552,1723476648294,-500.0,0.00016791,2]
[334690553,1723476648308,-500.0,0.00016791,2]
[334690554,1723476648322,-683.28,0.00016791,2]
[334690555,1723476648336,-583.38,0.00016791,2]
[334690556,1723476648348,-500.0,0.00016791,2]
[334690557,1723476648361,-1051.63,0.00016791,2]
[334690558,1723476648376,-500.0,0.00016791,2]
[334690559,1723476648389,-1321.14,0.00016791,2]
[334690560,1723476648401,-919.14,0.00016791,2]
[334690561,1723476648412,-1606.19,0.00016791,2]
[334690562,1723476648424,-500.0,0.00016791,2]
[334690563,1723476648436,-4138.96,0.00016791,2]
[334690564,1723476648449,-1453.74,0.00016793,2]
[334690565,1723476648462,-7660.85,0.00016793,2]
[334690566,1723476648474,-1527.54,0.00016793,2]
[334690567,1723476648488,-911.33,0.00016793,2]
[334690568,1723476648502,-1020.93,0.00016793,2]
[334690569,1723476648519,-500.0,0.00016794,2]
[334690570,1723476648531,-163.24352531,0.00016794,2]
[334690571,1723476648542,-500.0,0.00016794,2]
[334690572,1723476648553,-500.0,0.00016794,2]
[334690573,1723476648565,-500.0,0.00016794,2]
[334690574,1723476648580,-500.0,0.00016794,2]
[334690575,1723476648595,-553.09578431,0.00016794,2]
[334690576,1723476648605,-500.0,0.00016794,2]
[334690577,1723476648619,-514.05,0.00016794,2]
[334690578,1723476648631,-500.0,0.00016794,2]
[334690579,1723476648642,-500.0,0.00016794,2]
[334690580,1723476648654,-379.5,0.00016794,2]
[334690581,1723476648666,-500.0,0.00016794,2]
[334690582,1723476648679,-503.10120113,0.00016794,2]
[334690583,1723476648690,-500.0,0.00016794,2]
[334690584,1723476648702,-500.0,0.00016794,2]
[334690585,1723476648713,-500.0,0.00016794,2]
[334690586,1723476648724,-500.0,0.00016794,2]
[334690587,1723476648734,-500.0,0.00016794,2]
[334690588,1723476648745,-500.0,0.00016794,2]
[334690589,1723476648760,-500.0,0.00016794,2]
[334690590,1723476648773,-874.8,0.00016794,2]
[334690591,1723476648784,-713.52,0.00016794,2]
[334690592,1723476648795,-717.45,0.00016794,2]
[334690593,1723476648806,-500.0,0.00016794,2]
[334690594,1723476648818,-1749.44,0.00016794,2]
[334690595,1723476648829,-437.23647548,0.00016794,2]
[334690596,1723476648841,-500.0,0.00016794,2]
[334690597,1723476648852,-500.0,0.00016794,2]
[334690598,1723476648864,-1124.43,0.00016794,2]
[334690599,1723476648875,-500.0,0.00016794,2]
[334690600,1723476648887,-500.0,0.00016799,2]
[334690601,1723476648899,-150.112233,0.000168,2]
[334690602,1723476648910,-500.0,0.00016804,2]
[334690603,1723476648922,-1170.98,0.00016804,2]
[334690604,1723476648934,-500.0,0.00016804,2]
[334690605,1723476648945,-500.0,0.00016804,2]
[334690606,1723476648956,-754.81,0.00016804,2]
[334690607,1723476648968,-1614.88772514,0.00016804,2]
[334690608,1723476649366,-499.99855932,0.00015972,2]
[334690609,1723476649377,-264.289944,0.00016179,2]
[334690610,1723476649389,-264.289944,0.00016243,2]
[334690611,1723476649401,-235.62155012,0.00016463,2]
[334690612,1723476649529,-28.66839388,0.00016463,2]
[334690613,1723476649538,-1292.98,0.00016791,2]
[334690614,1723476649547,-245.49227486,0.00016804,2]
[334690615,1723476649557,-1609.64,0.00016804,2]
[334690616,1723476649566,-500.0,0.00016804,2]
[334690617,1723476649579,-500.0,0.00016804,2]
[334690618,1723476649590,-2426.08,0.00016804,2]
[334690619,1723476649806,-1419.65,0.00016804,2]
[334690620,1723476649825,-500.0,0.00016804,2]
[334690621,1723476649840,-500.0,0.00016804,2]
[334690622,1723476649850,-151.0,0.0001699,2]
[334690623,1723476649860,-151.0,0.0001699,2]
[334690624,1723476649869,-151.0,0.0001699,2]
[334690625,1723476649880,-715.820095,0.0001699,2]
[334690626,1723476649890,-715.820095,0.0001699,2]
[334690627,1723476649899,-151.0,0.0001699,2]
[334690628,1723476649909,-329.655463,0.0001699,2]
[334690629,1723476649918,-329.655463,0.0001699,2]
[334690630,1723476649928,-395.118309,0.0001699,2]
[334690631,1723476649940,-395.118309,0.0001699,2]
[334690632,1723476649949,-151.0,0.0001699,2]
[334690633,1723476649959,-167.796544,0.0001699,2]
[334690634,1723476649969,-151.0,0.0001699,2]
[334690635,1723476649978,-397.59555,0.0001699,2]
[334690636,1723476649988,-397.59555,0.0001699,2]
[334690637,1723476649997,-151.0,0.0001699,2]
[334690638,1723476650007,-597.04438,0.0001699,2]
[334690639,1723476650024,-597.04438,0.0001699,2]
[334690640,1723476650034,-628.51685,0.0001699,2]
[334690641,1723476650043,-628.51685,0.0001699,2]
[334690642,1723476650053,-7871.53,0.00016999,2]
[334690643,1723476650063,-817.03180288,0.00017,3]
[334690644,1723476650073,-9432.90932631,0.00017,2]
[334690645,1723476650083,-500.0,0.0001701,2]
[334690646,1723476650093,-3089.04,0.0001701,2]
[334690647,1723476650103,-395.50604003,0.0001701,2]
[334690648,1723476650112,-11811.76,0.0001701,2]
[334690649,1723476650122,-1273.38,0.0001701,2]
[334690650,1723476650131,-2074.15,0.0001701,2]
[334690651,1723476650141,-597.81,0.0001701,2]
[334690652,1723476650150,-1302.08,0.0001701,2]
[334690653,1723476650160,-1702.88,0.00017011,2]
[334690654,1723476650170,-6385.81,0.00017011,2]
[334690655,1723476650179,-661.49,0.00017011,2]
[334690656,1723476650189,-2282.01,0.00017011,2]
[334690657,1723476650198,-693.74,0.00017011,2]
[334690658,1723476650208,-500.0,0.00017011,2]
[334690659,1723476650218,-2227.53,0.00017011,2]
[334690660,1723476650227,-2322.49,0.00017011,2]
[334690661,1723476650236,-1454.25,0.00017011,2]
[334690662,1723476650245,-500.0,0.00017011,2]
[334690663,1723476650254,-11118.73,0.00017011,2]
[334690664,1723476650267,-3424.5,0.00017011,2]
[334690665,1723476650276,-2173.6,0.00017011,2]
[334690666,1723476650286,-1979.39,0.00017011,2]
[334690667,1723476650295,-2078.91,0.00017011,2]
[334690668,1723476650304,-264.289944,0.00017011,2]
[334690669,1723476650314,-500.0,0.00017065,2]
[334690670,1723476650323,-1586.43,0.00017065,2]
[334690671,1723476650333,-500.0,0.00017065,2]
[334690672,1723476650343,-885.02,0.00017065,2]
[334690673,1723476650352,-972.98,0.00017065,2]
[334690674,1723476650362,-500.0,0.00017065,2]
[334690675,1723476650372,-500.0,0.00017065,2]
[334690676,1723476650382,-500.0,0.00017065,2]
[334690677,1723476650392,-1940.05,0.00017065,2]
[334690678,1723476650401,-1181.89,0.00017065,2]
[334690679,1723476650411,-1145.62,0.00017065,2]
[334690680,1723476650421,-678.74,0.00017065,2]
[334690681,1723476650431,-500.0,0.00017065,2]
[334690682,1723476650441,-500.0,0.00017065,2]
[334690683,1723476650451,-247.36671741,0.00017065,2]
[334690684,1723476650462,-3300.19,0.00017065,2]
[334690685,1723476650472,-4811.12,0.00017065,2]
[334690686,1723476650481,-761.22,0.00017065,2]
[334690687,1723476650491,-500.0,0.00017065,2]
[334690688,1723476650501,-1023.01,0.00017065,2]
[334690689,1723476650513,-500.0,0.00017065,2]
[334690690,1723476650526,-500.0,0.00017065,2]
[334690691,1723476650537,-1620.96,0.00017065,2]
[334690692,1723476650547,-500.0,0.00017065,2]
[334690693,1723476650556,-500.0,0.00017065,2]
[334690694,1723476650566,-588.84,0.00017065,2]
[334690695,1723476650576,-500.0,0.00017065,2]
[334690696,1723476650589,-728.26,0.00017065,2]
[334690697,1723476650598,-500.0,0.00017065,2]
[334690698,1723476650608,-500.0,0.00017065,2]
[334690699,1723476650619,-683.28,0.00017065,2]
[334690700,1723476650629,-583.38,0.00017065,2]
[334690701,1723476650638,-500.0,0.00017065,2]
[334690702,1723476650648,-1051.63,0.00017065,2]
[334690703,1723476650660,-500.0,0.00017065,2]
[334690704,1723476650670,-1321.14,0.00017065,2]
[334690705,1723476650679,-919.14,0.00017065,2]
[334690706,1723476650689,-1606.19,0.00017065,2]
[334690707,1723476650699,-500.0,0.00017065,2]
[334690708,1723476650709,-4138.96,0.00017065,2]
[334690709,1723476650719,-1292.98,0.00017065,2]
[334690710,1723476650729,-1453.74,0.00017067,2]
[334690711,1723476650739,-7660.85,0.00017067,2]
[334690712,1723476650750,-1527.54,0.00017067,2]
[334690713,1723476650761,-911.33,0.00017067,2]
[334690714,1723476650770,-151.0,0.00017067,2]
[334690715,1723476650779,-151.0,0.00017067,2]
[334690716,1723476650788,-1146.583242,0.00017067,2]
[334690717,1723476650798,-1146.583242,0.00017067,2]
[334690718,1723476650807,-1020.93,0.00017067,2]
[334690719,1723476650816,-500.0,0.00017068,2]
[334690720,1723476650826,-500.0,0.00017068,2]
[334690721,1723476650837,-507.40482495,0.00017068,2]
[334690722,1723476650847,-500.0,0.00017068,2]
[334690723,1723476650856,-500.0,0.00017068,2]
[334690724,1723476650865,-500.0,0.00017068,2]
[334690725,1723476650875,-514.05,0.00017068,2]
[334690726,1723476650885,-500.0,0.00017068,2]
[334690727,1723476650894,-500.0,0.00017068,2]
[334690728,1723476650904,-500.0,0.00017068,2]
[334690729,1723476650913,-500.0,0.00017068,2]
[334690730,1723476650923,-508.91937774,0.00017068,2]
[334690731,1723476650933,-505.76043668,0.00017068,2]
[334690732,1723476650942,-500.0,0.00017068,2]
[334690733,1723476650952,-520.17764207,0.00017068,2]
[334690734,1723476650962,-500.0,0.00017068,2]
[334690735,1723476650971,-874.8,0.00017068,2]
[334690736,1723476650982,-713.52,0.00017068,2]
[334690737,1723476650991,-717.45,0.00017068,2]
[334690738,1723476651001,-500.0,0.00017068,2]
[334690739,1723476651012,-1749.44,0.00017068,2]
[334690740,1723476651021,-500.0,0.00017068,2]
[334690741,1723476651031,-500.0,0.00017068,2]
[334690742,1723476651040,-1124.43,0.00017068,2]
[334690743,1723476651050,-500.0,0.00017068,2]
[334690744,1723476651059,-500.0,0.00017078,2]
[334690745,1723476651070,-1170.98,0.00017078,2]
[334690746,1723476651080,-500.0,0.00017078,2]
[334690747,1723476651090,-500.0,0.00017078,2]
[334690748,1723476651099,-754.81,0.00017078,2]
[334690749,1723476651108,-1860.38,0.00017078,2]
[334690750,1723476651118,-500.0,0.00017078,2]
[334690751,1723476651129,-1609.64,0.00017078,2]
[334690752,1723476651139,-500.0,0.00017078,2]
[334690753,1723476651148,-2426.08,0.00017078,2]
[334690754,1723476651158,-1419.65,0.00017078,2]
[334690755,1723476651171,-500.0,0.00017078,2]
[334690756,1723476651181,-316.92854539,0.00017078,2]
[334690757,1723476651511,-500.0,0.00015694,2]
[334690758,1723476651523,-219.24209366,0.00015694,2]
[334690759,1723476651533,-500.0,0.00015694,2]
[334690760,1723476651542,-264.289944,0.0001652,2]
[334690761,1723476651552,-264.289944,0.00016784,2]
[334690762,1723476651561,-264.289944,0.00017011,2]
[334690763,1723476651570,-183.07145461,0.00017078,2]
[334690764,1723476651581,-420.0,0.00017105,2]
[334690765,1723476651592,-151.0,0.00017158,2]
[334690766,1723476651601,-157.855426,0.00017158,2]
[334690767,1723476651611,-151.0,0.00017158,2]
[334690768,1723476651620,-153.013703,0.00017158,2]
[334690769,1723476651629,-151.0,0.00017158,2]
[334690770,1723476651638,-186.37382,0.00017158,2]
[334690771,1723476651647,-186.37382,0.00017158,2]
[334690772,1723476651659,-367.876187,0.00017158,2]
[334690773,1723476651668,-367.876187,0.00017158,2]
[334690774,1723476651678,-235.316128,0.00017158,2]
[334690775,1723476651687,-235.316128,0.00017158,2]
[334690776,1723476651697,-7871.53,0.00017158,2]
[334690777,1723476651707,-7871.53,0.00017158,2]
[334690778,1723476651716,-420.0,0.00017203,2]
[334690779,1723476651725,-500.0,0.00017284,2]
[334690780,1723476651735,-3089.04,0.00017284,2]
[334690781,1723476651744,-11811.76,0.00017284,2]
[334690782,1723476651754,-1273.38,0.00017284,2]
[334690783,1723476651767,-2074.15,0.00017284,2]
[334690784,1723476651776,-597.81,0.00017284,2]
[334690785,1723476651786,-1302.08,0.00017284,2]
[334690786,1723476651795,-264.289944,0.00017284,2]
[334690787,1723476651805,-264.289944,0.00017284,2]
[334690788,1723476651814,-1702.88,0.00017285,2]
[334690789,1723476651823,-6385.81,0.00017285,2]
[334690790,1723476651832,-661.49,0.00017285,2]
[334690791,1723476651841,-2282.01,0.00017285,2]
[334690792,1723476651850,-693.74,0.00017285,2]
[334690793,1723476651860,-529.26505697,0.00017285,2]
[334690794,1723476651869,-2227.53,0.00017285,2]
[334690795,1723476651878,-2322.49,0.00017285,2]
[334690796,1723476651887,-1454.25,0.00017285,2]
[334690797,1723476651897,-508.73800832,0.00017285,2]
[334690798,1723476651906,-11118.73,0.00017285,2]
[334690799,1723476651916,-3064.91186737,0.00017285,2]
[334690800,1723476651928,-359.58813263,0.00017285,2]
[334690801,1723476651938,-2173.6,0.00017285,2]
[334690802,1723476651947,-1979.39,0.00017285,2]
[334690803,1723476651957,-1858.09745173,0.00017285,2]
[334690804,1723476652557,-203.5352562,0.00015293,2]
[334690805,1723476652566,-1887.70038382,0.00015541,2]
[334690807,1723476708820,250.0,0.00014778,2]
[334690808,1723476709084,250.0,0.00014818,2]
[334690809,1723476709322,250.0,0.00014859,2]
[334690810,1723476709570,250.0,0.00014899,2]
[334690811,1723476709786,250.0,0.0001494,2]
[334690812,1723476710019,250.0,0.0001498,2]
[334690813,1723476771821,720.33754311,0.0001498,2]
[334690814,1723476913537,1191.39445333,0.0001498,2]
[334690815,1723476965450,157.9723884,9.999e-05,2]
[334690816,1723476986809,159.165833,0.00014247,2]
[334690817,1723476999947,157.74358322,0.0001212,2]
[334690818,1723477003600,2164.15371537,0.0001212,2]
[334690819,1723477004155,522.8794631,0.0001212,2]
[334690820,1723477004789,321.4,0.00010959,2]
[334690821,1723477006071,250.24281476,0.0001212,2]
[334690822,1723477013488,157.11976669,0.0001212,2]
[334690831,1723477018945,157.9723884,0.0001212,2]
[334690832,1723477033080,636.65531725,0.0001212,2]
[334690833,1723477033226,383.75592559,0.0001212,2]
[334690834,1723477038849,232.07822265,0.0001212,2]
[334690835,1723477040875,155.01488509,0.0001212,2]
[334690836,1723477050101,539.32727083,0.0001212,2]
[334690837,1723477050209,247.12784503,9.999e-05,2]
[334690839,1723477060992,289.89267389,0.00014691,2]
[334690840,1723477069068,422.01,0.00014691,2]
[334690841,1723477075179,519.88688544,0.00014691,2]
[334690842,1723477076475,311.56463282,0.00014691,2]
[334690843,1723477078455,166.23720356,0.00014691,2]
[334690844,1723477078907,309.11885378,0.00014691,2]
[334690845,1723477081885,274.44831486,0.00014691,2]
[334690846,1723477082593,460.27290627,0.00015,4]
[334690847,1723477084377,154.74467129,0.00014691,2]
[334690848,1723477085813,534.45169516,0.00014691,2]
[334690849,1723477086947,612.77340407,0.00014691,2]
[334690850,1723477093803,569.05372197,0.00014691,2]
[334690851,1723477101678,8838.10257053,0.00014691,2]
[334690852,1723477131109,906.26,0.00015,2]
[334690853,1723477143827,38842.62291749,0.00015,2]
[334690855,1723477184979,250.0,0.00014514,2]
[334690856,1723477185189,250.0,0.00014554,2]
[334690857,1723477185430,250.0,0.00014594,2]
[334690858,1723477185644,250.0,0.00014634,2]
[334690859,1723477185872,250.0,0.00014673,2]
[334690860,1723477186125,250.0,0.00014713,2]
[334690861,1723477186566,250.0,0.00014753,2]
[334690862,1723477186823,250.0,0.00014793,2]
[334690863,1723477187070,250.0,0.00014833,2]
[334690864,1723477187529,250.0,0.00014872,2]
[334690865,1723477187967,250.0,0.00014912,2]
[334690866,1723477188198,250.0,0.00014952,2]
[334690867,1723477188416,250.0,0.00014992,2]
[334690868,1723477277114,24900.0,0.00014344,2]
[334690869,1723477495454,1644.88536636,0.00016095,7]
[334690871,1723477548163,-1581.5314073,0.0001502,2]
[334690872,1723477548188,-250.0,0.00015032,2]
[334690873,1723477548210,-250.0,0.00015072,2]
[334690874,1723477548234,-250.0,0.00015111,2]
[334690875,1723477548260,-250.0,0.00015151,2]
[334690876,1723477548282,-250.0,0.00015191,2]
[334690877,1723477548303,-250.0,0.00015231,2]
[334690878,1723477548326,-250.0,0.00015271,2]
[334690879,1723477548349,-300.0,0.00015429,2]
[334690880,1723477548372,-300.0,0.00015429,2]
[334690881,1723477548393,-6443.22155035,0.0001543,2]
[334690882,1723477548415,-174.29819276,0.00015439,2]
[334690883,1723477548436,-3151.11303205,0.00015439,2]
[334690884,1723477548458,-150.112233,0.000155,2]
[334690885,1723477548479,-174.29819275,0.00015517,2]
[334690886,1723477548509,-502.11294762,0.00015529,2]
[334690887,1723477548531,-502.51194388,0.00015529,2]
[334690888,1723477548554,-500.0,0.00015529,2]
[334690889,1723477548575,-501.14631301,0.00015529,2]
[334690890,1723477548597,-500.0,0.00015529,2]
[334690891,1723477548619,-500.0,0.00015529,2]
[334690892,1723477548640,-500.0,0.00015529,2]
[334690893,1723477548662,-500.0,0.00015529,2]
[334690894,1723477548684,-240.7514912,0.00015529,2]
[334690895,1723477548705,-522.78,0.00015529,2]
[334690896,1723477548726,-240.02974662,0.00015529,2]
[334690897,1723477548760,-500.0,0.00015529,2]
[334690898,1723477548787,-500.0,0.00015529,2]
[334690899,1723477548810,-500.0,0.00015529,2]
[334690900,1723477548834,-500.0,0.00015529,2]
[334690901,1723477548857,-500.0,0.00015529,2]
[334690902,1723477548885,-500.0,0.00015529,2]
[334690903,1723477548910,-500.0,0.00015529,2]
[334690904,1723477548936,-500.0,0.00015529,2]
[334690905,1723477548963,-500.0,0.00015529,2]
[334690906,1723477548993,-500.0,0.00015529,2]
[334690907,1723477549016,-500.0,0.00015529,2]
[334690908,1723477549042,-500.0,0.00015529,2]
[334690909,1723477549065,-500.0,0.00015529,2]
[334690910,1723477549088,-500.0,0.00015529,2]
[334690911,1723477549112,-507.86405058,0.00015529,2]
[334690912,1723477549136,-500.0,0.00015529,2]
[334690913,1723477549158,-500.0,0.00015529,2]
[334690914,1723477549180,-2451.08,0.00015529,2]
[334690915,1723477549202,-500.0,0.00015529,2]
[334690916,1723477549224,-500.0,0.00015529,2]
[334690917,1723477549248,-500.0,0.00015529,2]
[334690918,1723477549270,-9323.84,0.00015529,2]
[334690919,1723477549292,-1005.17,0.00015529,2]
[334690920,1723477549314,-500.0,0.00015529,2]
[334690921,1723477549336,-509.39676028,0.00015529,2]
[334690922,1723477549357,-533.56,0.00015529,2]
[334690923,1723477549380,-999.97034271,0.00015529,2]
[334690924,1723477549403,-567.87,0.0001553,2]
[334690925,1723477549424,-1401.99,0.0001553,2]
[334690926,1723477549445,-890.0,0.0001553,2]
[334690927,1723477549467,-204.43492489,0.0001553,2]
[334690928,1723477549494,-500.0,0.0001553,2]
[334690929,1723477549516,-500.0,0.0001553,2]
[334690930,1723477549538,-500.0,0.0001553,2]
[334690931,1723477549559,-990.82,0.0001553,2]
[334690932,1723477549581,-500.0,0.0001553,2]
[334690933,1723477549602,-1548.26,0.0001553,2]
[334690934,1723477549625,-500.0,0.0001553,2]
[334690935,1723477549647,-500.0,0.0001553,2]
[334690936,1723477549670,-500.0,0.0001553,2]
[334690937,1723477549692,-506.83263713,0.0001553,2]
[334690938,1723477549718,-6407.48,0.0001553,2]
[334690939,1723477549745,-500.0,0.0001553,2]
[334690940,1723477549767,-2046.93,0.0001553,2]
[334690941,1723477549790,-976.35,0.0001553,2]
[334690942,1723477549812,-1279.96,0.0001553,2]
[334690943,1723477549835,-512.19781729,0.0001553,2]
[334690944,1723477549858,-62963.1778719,0.0001553,2]
[334690945,1723477549882,-485.3864207,0.0001553,2]
[334690946,1723477549905,-500.0,0.0001553,2]
[334690947,1723477549928,-887.8,0.0001553,2]
[334690948,1723477549952,-4799.33,0.0001553,2]
[334690949,1723477549974,-1076.44,0.0001553,2]
[334690950,1723477550000,-521.45,0.0001553,2]
[334690951,1723477550022,-1715.07,0.0001553,2]
[334690952,1723477550045,-2838.76,0.0001553,2]
[334690953,1723477550068,-500.0,0.0001553,2]
[334690954,1723477550091,-500.0,0.0001553,2]
[334690955,1723477550114,-500.0,0.0001553,2]
[334690956,1723477550138,-1148.2,0.0001553,2]
[334690957,1723477550161,-1762.91,0.0001553,2]
[334690958,1723477550183,-625.0,0.0001553,2]
[334690959,1723477550425,-1833.71,0.0001553,2]
[334690960,1723477550448,-557.37,0.0001553,2]
[334690961,1723477550470,-772.32,0.0001553,2]
[334690962,1723477550499,-500.0,0.0001553,2]
[334690963,1723477550521,-1254.45,0.0001553,2]
[334690964,1723477550544,-1715.78,0.0001553,2]
[334690965,1723477550565,-1307.89,0.0001553,2]
[334690966,1723477550588,-8777.12,0.0001553,2]
[334690967,1723477550609,-584.21,0.0001553,2]
[334690968,1723477550631,-513.72,0.0001553,2]
[334690969,1723477550652,-500.0,0.0001553,2]
[334690970,1723477550673,-2703.2,0.0001553,2]
[334690971,1723477550696,-500.0,0.0001553,2]
[334690972,1723477550720,-1648.34,0.0001553,2]
[334690973,1723477550748,-1566.53,0.0001553,2]
[334690974,1723477550770,-1426.58,0.0001553,2]
[334690975,1723477550792,-638.85,0.0001553,2]
[334690976,1723477550814,-605.01999677,0.0001553,2]
[334690977,1723477550835,-500.0,0.00015539,2]
[334690978,1723477550856,-500.0,0.00015539,2]
[334690979,1723477550889,-2838.76,0.00015539,2]
[334690980,1723477550912,-2838.76,0.00015539,2]
[334690981,1723477550935,-500.0,0.0001554,2]
[334690982,1723477550957,-542.17,0.0001554,2]
[334690983,1723477550980,-500.0,0.0001554,2]
[334690984,1723477551006,-500.0,0.0001554,2]
[334690985,1723477551028,-1048.3,0.0001554,2]
[334690986,1723477551051,-1023.4,0.0001554,2]
[334690987,1723477551074,-500.0,0.0001554,2]
[334690988,1723477551096,-1271.17,0.0001554,2]
[334690989,1723477551117,-893.64,0.0001554,2]
[334690990,1723477551139,-500.0,0.0001554,2]
[334690991,1723477551161,-1188.7,0.0001554,2]
[334690992,1723477551183,-3276.03,0.0001554,2]
[334690993,1723477551205,-500.0,0.0001554,2]
[334690994,1723477551227,-500.0,0.0001554,2]
[334690995,1723477551255,-500.0,0.0001554,2]
[334690996,1723477551276,-2155.47,0.0001554,2]
[334690997,1723477551297,-500.0,0.0001554,2]
[334690998,1723477551319,-500.0,0.0001554,2]
[334690999,1723477551341,-500.0,0.0001554,2]
[334691000,1723477551363,-183.01748721,0.0001554,2]
[334691001,1723477558118,-500.0,0.00015529,2]
[334691002,1723477558141,-1570.17,0.00015529,2]
[334691003,1723477558163,-1898.53251279,0.0001554,2]
[334691004,1723477558184,-500.0,0.0001554,2]
[334691005,1723477558350,-500.0,0.0001554,2]
[334691006,1723477558373,-1153.15,0.0001554,2]
[334691007,1723477558395,-702.02,0.0001554,2]
[334691008,1723477558418,-6016.21,0.0001554,2]
[334691009,1723477558442,-500.0,0.0001554,2]
[334691010,1723477558467,-500.0,0.0001554,2]
[334691011,1723477558488,-1543.06,0.0001554,2]
[334691012,1723477558513,-500.0,0.0001554,2]
[334691013,1723477558536,-500.0,0.0001554,2]
[334691014,1723477558559,-500.0,0.0001554,2]
[334691015,1723477558582,-2838.76,0.0001554,2]
[334691016,1723477558603,-771.8,0.0001554,2]
[334691017,1723477558626,-538.45,0.0001554,2]
[334691018,1723477558649,-6062.95,0.0001554,2]
[334691019,1723477558671,-500.0,0.0001554,2]
[334691020,1723477558691,-500.0,0.0001554,2]
[334691021,1723477558712,-937.51,0.0001554,2]
[334691022,1723477558732,-500.0,0.0001554,2]
[334691023,1723477558757,-500.0,0.0001554,2]
[334691024,1723477558777,-1206.07,0.0001554,2]
[334691025,1723477558798,-500.0,0.0001554,2]
[334691026,1723477558820,-602.51,0.0001554,2]
[334691027,1723477558843,-2611.84,0.0001554,2]
[334691028,1723477558865,-719.54,0.0001554,2]
[334691029,1723477558888,-500.0,0.0001554,2]
[334691030,1723477558911,-500.0,0.0001554,2]
[334691031,1723477558932,-3805.11,0.0001554,2]
[334691032,1723477558954,-500.0,0.0001554,2]
[334691033,1723477558975,-500.0,0.0001554,2]
[334691034,1723477558997,-805.89,0.0001554,2]
[334691035,1723477559017,-1215.72,0.0001554,2]
[334691036,1723477559043,-500.0,0.0001554,2]
[334691037,1723477559065,-500.0,0.0001554,2]
[334691038,1723477559088,-500.0,0.0001554,2]
[334691039,1723477559109,-574.86,0.0001554,2]
[334691040,1723477559130,-500.0,0.0001554,2]
[334691041,1723477559151,-174.29819275,0.00015594,2]
[334691042,1723477559174,-2029.44616286,0.00015598,2]